[Event "Titled Tuesday Blitz February 28 Late 2023"]
[White "Florescu, Codrut-Constantin"]
[Black "Gokerkan, Cem Kaan"]
[WhiteFideId "1202200"]
[BlackFideId "6336760"]
[WhiteElo "2191"]
[BlackElo "2365"]
[Result "1/2-1/2"]
[Round "02"]
[TimeControl "180+2"]
[Date "2023.02.28"]
[WhiteClock "0:00:47"]
[BlackClock "0:00:24"]

1. e4 {[%clk 0:03:00]}  e5 {[%clk 0:02:59]} 2. Nf3 {[%clk 0:03:00]}  Nf6 {[%clk 0:02:58]} 3. Nxe5 {[%clk 0:02:58]}  d5 {[%clk 0:02:59]} 4. d4 {[%clk 0:02:56]}  Nxe4 {[%clk 0:02:55]} 5. Bd3 {[%clk 0:02:55]}  Nd7 {[%clk 0:02:55]} 6. Nxd7 {[%clk 0:02:54]}  Bxd7 {[%clk 0:02:55]} 7. O-O {[%clk 0:02:54]}  Bd6 {[%clk 0:02:39]} 8. c4 {[%clk 0:02:53]}  c6 {[%clk 0:02:31]} 9. Nc3 {[%clk 0:02:47]}  Nxc3 {[%clk 0:02:13]} 10. bxc3 {[%clk 0:02:47]}  Be6 {[%clk 0:01:40]} 11. cxd5 {[%clk 0:02:38]}  cxd5 {[%clk 0:01:41]} 12. Bb5+ {[%clk 0:02:34]}  Kf8 {[%clk 0:01:42]} 13. Qh5 {[%clk 0:02:29]}  Rc8 {[%clk 0:01:39]} 14. Bd2 {[%clk 0:02:26]}  Qf6 {[%clk 0:01:33]} 15. Bd3 {[%clk 0:02:20]}  Bf4 {[%clk 0:01:26]} 16. Bxf4 {[%clk 0:02:16]}  Qxf4 {[%clk 0:01:27]} 17. Rac1 {[%clk 0:02:15]}  g6 {[%clk 0:01:25]} 18. Qe2 {[%clk 0:02:12]}  Kg7 {[%clk 0:01:24]} 19. g3 {[%clk 0:02:12]}  Qf6 {[%clk 0:01:19]} 20. f4 {[%clk 0:02:11]}  Rhe8 {[%clk 0:01:18]} 21. Qe5 {[%clk 0:02:09]}  Bh3 {[%clk 0:01:12]} 22. Qxf6+ {[%clk 0:02:09]}  Kxf6 {[%clk 0:01:13]} 23. Rf2 {[%clk 0:02:04]}  Re3 {[%clk 0:01:11]} 24. Rd2 {[%clk 0:02:04]}  Bf5 {[%clk 0:01:11]} 25. Bxf5 {[%clk 0:01:55]}  Kxf5 {[%clk 0:01:12]} 26. Rdc2 {[%clk 0:01:48]}  b6 {[%clk 0:01:09]} 27. Kf2 {[%clk 0:01:48]}  Ke4 {[%clk 0:01:02]} 28. Re2 {[%clk 0:01:38]}  Rxe2+ {[%clk 0:01:00]} 29. Kxe2 {[%clk 0:01:39]}  Rc4 {[%clk 0:00:51]} 30. Kd2 {[%clk 0:01:26]}  Ra4 {[%clk 0:00:51]} 31. Rc2 {[%clk 0:01:26]}  h5 {[%clk 0:00:51]} 32. Ke2 {[%clk 0:01:17]}  b5 {[%clk 0:00:47]} 33. Rb2 {[%clk 0:01:12]}  a6 {[%clk 0:00:47]} 34. Kd2 {[%clk 0:01:12]}  Kf3 {[%clk 0:00:36]} 35. Kd3 {[%clk 0:01:11]}  h4 {[%clk 0:00:36]} 36. gxh4 {[%clk 0:01:11]}  Kxf4 {[%clk 0:00:37]} 37. Rf2+ {[%clk 0:01:10]}  Kg4 {[%clk 0:00:38]} 38. Rxf7 {[%clk 0:01:10]}  Rxa2 {[%clk 0:00:38]} 39. Rd7 {[%clk 0:01:05]}  Kxh4 {[%clk 0:00:32]} 40. Rxd5 {[%clk 0:01:05]}  Rxh2 {[%clk 0:00:33]} 41. Rd6 {[%clk 0:01:03]}  g5 {[%clk 0:00:32]} 42. Rh6+ {[%clk 0:00:43]}  Kg3 {[%clk 0:00:33]} 43. Rxh2 {[%clk 0:00:43]}  Kxh2 {[%clk 0:00:34]} 44. d5 {[%clk 0:00:43]}  g4 {[%clk 0:00:34]} 45. d6 {[%clk 0:00:44]}  g3 {[%clk 0:00:35]} 46. d7 {[%clk 0:00:44]}  g2 {[%clk 0:00:36]} 47. d8=Q {[%clk 0:00:44]}  g1=Q {[%clk 0:00:37]} 48. Qh8+ {[%clk 0:00:44]}  Kg2 {[%clk 0:00:37]} 49. Qg7+ {[%clk 0:00:44]}  Kf1 {[%clk 0:00:38]} 50. Qxg1+ {[%clk 0:00:44]}  Kxg1 {[%clk 0:00:39]} 51. c4 {[%clk 0:00:45]}  bxc4+ {[%clk 0:00:23]} 52. Kxc4 {[%clk 0:00:45]}  Kf2 {[%clk 0:00:23]} 53. Kb4 {[%clk 0:00:46]}  Ke3 {[%clk 0:00:23]} 54. Ka5 {[%clk 0:00:46]}  Kd4 {[%clk 0:00:24]} 55. Kxa6 {[%clk 0:00:47]} 1/2-1/2


[Site "https://www.chess.com"]

[Event "Titled Tuesday Blitz February 28 Late 2023"]
[White "Mendonca, Leon Luke"]
[Black "Taboas Rodriguez, Daniel"]
[WhiteFideId "35028561"]
[BlackFideId "2208466"]
[WhiteElo "2464"]
[BlackElo "2365"]
[Result "1-0"]
[Round "02"]
[TimeControl "180+2"]
[Date "2023.02.28"]
[WhiteClock "0:00:58"]
[BlackClock "0:00:24"]

1. b3 {[%clk 0:03:00]}  d5 {[%clk 0:02:59]} 2. Bb2 {[%clk 0:03:01]}  Bg4 {[%clk 0:03:00]} 3. g3 {[%clk 0:03:01]}  Nc6 {[%clk 0:02:58]} 4. Bg2 {[%clk 0:03:01]}  e5 {[%clk 0:02:57]} 5. d3 {[%clk 0:02:58]}  Nf6 {[%clk 0:02:56]} 6. Nd2 {[%clk 0:02:59]}  Bc5 {[%clk 0:02:54]} 7. h3 {[%clk 0:02:58]}  Bh5 {[%clk 0:02:53]} 8. g4 {[%clk 0:02:58]}  Bg6 {[%clk 0:02:53]} 9. e3 {[%clk 0:02:59]}  O-O {[%clk 0:02:52]} 10. Ne2 {[%clk 0:02:57]}  Qe7 {[%clk 0:02:43]} 11. Ng3 {[%clk 0:02:55]}  Rad8 {[%clk 0:02:39]} 12. g5 {[%clk 0:02:51]}  Ne8 {[%clk 0:02:37]} 13. h4 {[%clk 0:02:49]}  f5 {[%clk 0:02:32]} 14. gxf6 {[%clk 0:02:40]}  Qxf6 {[%clk 0:02:20]} 15. Qe2 {[%clk 0:02:37]}  Qd6 {[%clk 0:01:59]} 16. O-O-O {[%clk 0:02:23]}  Nf6 {[%clk 0:01:56]} 17. Kb1 {[%clk 0:02:03]}  a5 {[%clk 0:01:51]} 18. Rdg1 {[%clk 0:01:58]}  Ne7 {[%clk 0:01:46]} 19. h5 {[%clk 0:01:52]}  Bf7 {[%clk 0:01:46]} 20. Nf3 {[%clk 0:01:49]}  d4 {[%clk 0:01:34]} 21. Ng5 {[%clk 0:01:40]}  Bd5 {[%clk 0:01:25]} 22. N3e4 {[%clk 0:01:31]}  Nxe4 {[%clk 0:01:20]} 23. Bxe4 {[%clk 0:01:31]}  Bxe4 {[%clk 0:01:19]} 24. Nxe4 {[%clk 0:01:31]}  Qc6 {[%clk 0:01:14]} 25. Rh2 {[%clk 0:01:20]}  Nf5 {[%clk 0:01:14]} 26. Rhg2 {[%clk 0:01:09]}  dxe3 {[%clk 0:01:02]} 27. Bxe5 {[%clk 0:01:02]}  Rd7 {[%clk 0:00:44]} 28. fxe3 {[%clk 0:01:02]}  Bxe3 {[%clk 0:00:42]} 29. Rf1 {[%clk 0:00:57]}  Bd4 {[%clk 0:00:29]} 30. Bxd4 {[%clk 0:00:57]}  Nxd4 {[%clk 0:00:30]} 31. Rxf8+ {[%clk 0:00:57]}  Kxf8 {[%clk 0:00:30]} 32. Qf2+ {[%clk 0:00:58]}  Rf7 {[%clk 0:00:24]} 33. Qxd4 {[%clk 0:00:58]} 1-0


[Site "https://www.chess.com"]

[Event "Titled Tuesday Blitz February 28 Late 2023"]
[White "Manukyan, Sargis V."]
[Black "Alexakis, Dimitris"]
[WhiteFideId "13303465"]
[BlackFideId "4277023"]
[WhiteElo "2236"]
[BlackElo "2493"]
[Result "1/2-1/2"]
[Round "02"]
[TimeControl "180+2"]
[Date "2023.02.28"]
[WhiteClock "0:00:09"]
[BlackClock "0:00:12"]

1. Nf3 {[%clk 0:03:00]}  Nf6 {[%clk 0:02:59]} 2. g3 {[%clk 0:03:00]}  g6 {[%clk 0:02:58]} 3. b3 {[%clk 0:02:59]}  Bg7 {[%clk 0:02:59]} 4. Bb2 {[%clk 0:02:58]}  c5 {[%clk 0:03:00]} 5. c4 {[%clk 0:02:58]}  O-O {[%clk 0:02:57]} 6. Bg2 {[%clk 0:02:58]}  d5 {[%clk 0:02:56]} 7. cxd5 {[%clk 0:02:57]}  Nxd5 {[%clk 0:02:57]} 8. Bxg7 {[%clk 0:02:57]}  Kxg7 {[%clk 0:02:58]} 9. O-O {[%clk 0:02:56]}  Nc6 {[%clk 0:02:56]} 10. Qc1 {[%clk 0:02:56]}  b6 {[%clk 0:02:45]} 11. Qb2+ {[%clk 0:02:54]}  f6 {[%clk 0:02:44]} 12. d4 {[%clk 0:02:53]}  cxd4 {[%clk 0:02:16]} 13. Nxd4 {[%clk 0:02:29]}  Nxd4 {[%clk 0:02:10]} 14. Qxd4 {[%clk 0:02:30]}  Bb7 {[%clk 0:02:10]} 15. Rd1 {[%clk 0:02:29]}  e6 {[%clk 0:02:09]} 16. Nc3 {[%clk 0:02:29]}  Nxc3 {[%clk 0:02:01]} 17. Qxc3 {[%clk 0:02:28]}  Qe7 {[%clk 0:02:01]} 18. Bxb7 {[%clk 0:02:25]}  Qxb7 {[%clk 0:02:02]} 19. Rd6 {[%clk 0:02:25]}  Qe7 {[%clk 0:01:53]} 20. Rad1 {[%clk 0:02:22]}  Rad8 {[%clk 0:01:53]} 21. Qc6 {[%clk 0:02:18]}  Rxd6 {[%clk 0:01:47]} 22. Rxd6 {[%clk 0:02:17]}  Rf7 {[%clk 0:01:47]} 23. Rxe6 {[%clk 0:02:15]}  Qa3 {[%clk 0:01:47]} 24. Re8 {[%clk 0:02:02]}  Qxa2 {[%clk 0:01:42]} 25. Qc8 {[%clk 0:02:01]}  Qb1+ {[%clk 0:01:25]} 26. Kg2 {[%clk 0:01:47]}  Qf5 {[%clk 0:01:26]} 27. Rg8+ {[%clk 0:01:45]}  Kh6 {[%clk 0:01:24]} 28. Qc1+ {[%clk 0:01:34]}  g5 {[%clk 0:01:23]} 29. Qc4 {[%clk 0:01:27]}  Re7 {[%clk 0:01:16]} 30. Ra8 {[%clk 0:01:17]}  b5 {[%clk 0:01:01]} 31. Qd4 {[%clk 0:01:08]}  Rxe2 {[%clk 0:00:45]} 32. Rxa7 {[%clk 0:01:02]}  g4 {[%clk 0:00:44]} 33. Qf4+ {[%clk 0:00:53]}  Qxf4 {[%clk 0:00:43]} 34. gxf4 {[%clk 0:00:54]}  Rb2 {[%clk 0:00:34]} 35. Kg3 {[%clk 0:00:48]}  f5 {[%clk 0:00:29]} 36. Ra6+ {[%clk 0:00:44]}  Kh5 {[%clk 0:00:21]} 37. Rf6 {[%clk 0:00:40]}  Rxb3+ {[%clk 0:00:21]} 38. Kg2 {[%clk 0:00:40]}  b4 {[%clk 0:00:20]} 39. Rxf5+ {[%clk 0:00:39]}  Kh4 {[%clk 0:00:20]} 40. Rf7 {[%clk 0:00:36]}  h5 {[%clk 0:00:20]} 41. Rb7 {[%clk 0:00:35]}  Rb1 {[%clk 0:00:17]} 42. f5 {[%clk 0:00:34]}  Kg5 {[%clk 0:00:18]} 43. Rb5 {[%clk 0:00:32]}  h4 {[%clk 0:00:15]} 44. h3 {[%clk 0:00:32]}  Rb3 {[%clk 0:00:09]} 45. f6+ {[%clk 0:00:29]}  Kxf6 {[%clk 0:00:09]} 46. hxg4 {[%clk 0:00:30]}  h3+ {[%clk 0:00:08]} 47. Kh2 {[%clk 0:00:29]}  Kg6 {[%clk 0:00:08]} 48. f4 {[%clk 0:00:28]}  Kf6 {[%clk 0:00:07]} 49. Rb6+ {[%clk 0:00:27]}  Kf7 {[%clk 0:00:07]} 50. g5 {[%clk 0:00:27]}  Rf3 {[%clk 0:00:05]} 51. Rxb4 {[%clk 0:00:26]}  Kg6 {[%clk 0:00:06]} 52. Rb6+ {[%clk 0:00:26]}  Kh5 {[%clk 0:00:06]} 53. Rb4 {[%clk 0:00:20]}  Kg4 {[%clk 0:00:03]} 54. g6 {[%clk 0:00:15]}  Rf2+ {[%clk 0:00:03]} 55. Kh1 {[%clk 0:00:14]}  Rf1+ {[%clk 0:00:02]} 56. Kh2 {[%clk 0:00:13]}  Rf2+ {[%clk 0:00:02]} 57. Kg1 {[%clk 0:00:12]}  Rg2+ {[%clk 0:00:03]} 58. Kh1 {[%clk 0:00:11]}  Kf5 {[%clk 0:00:03]} 59. Rb5+ {[%clk 0:00:10]}  Kxf4 {[%clk 0:00:03]} 60. Rb3 {[%clk 0:00:10]}  Rxg6 {[%clk 0:00:03]} 61. Rxh3 {[%clk 0:00:10]}  Kg4 {[%clk 0:00:04]} 62. Rh2 {[%clk 0:00:09]}  Kf3 {[%clk 0:00:04]} 63. Rh5 {[%clk 0:00:09]}  Kf2 {[%clk 0:00:04]} 64. Rh2+ {[%clk 0:00:09]}  Kf1 {[%clk 0:00:04]} 65. Rh8 {[%clk 0:00:10]}  Rg1+ {[%clk 0:00:04]} 66. Kh2 {[%clk 0:00:09]}  Rg2+ {[%clk 0:00:05]} 67. Kh1 {[%clk 0:00:09]}  Rg1+ {[%clk 0:00:06]} 68. Kh2 {[%clk 0:00:08]}  Rg7 {[%clk 0:00:07]} 69. Rf8+ {[%clk 0:00:07]}  Ke2 {[%clk 0:00:07]} 70. Rf4 {[%clk 0:00:07]}  Ke3 {[%clk 0:00:08]} 71. Rf6 {[%clk 0:00:08]}  Ke4 {[%clk 0:00:07]} 72. Rf8 {[%clk 0:00:07]}  Rg6 {[%clk 0:00:08]} 73. Kh3 {[%clk 0:00:06]}  Ke3 {[%clk 0:00:08]} 74. Kh2 {[%clk 0:00:07]}  Ke2 {[%clk 0:00:08]} 75. Kh3 {[%clk 0:00:07]}  Rg7 {[%clk 0:00:08]} 76. Kh4 {[%clk 0:00:07]}  Ke3 {[%clk 0:00:08]} 77. Kh3 {[%clk 0:00:07]}  Ke4 {[%clk 0:00:09]} 78. Kh2 {[%clk 0:00:07]}  Kd5 {[%clk 0:00:09]} 79. Kh3 {[%clk 0:00:08]}  Ke4 {[%clk 0:00:10]} 80. Rf1 {[%clk 0:00:08]}  Ke5 {[%clk 0:00:11]} 81. Rf8 {[%clk 0:00:09]}  Ke6 {[%clk 0:00:12]} 82. Rf1 {[%clk 0:00:09]} 1/2-1/2


[Site "https://www.chess.com"]

[Event "Titled Tuesday Blitz February 28 Late 2023"]
[White "Berezin, Viktor"]
[Black "Holt, Conrad"]
[WhiteFideId "14107872"]
[BlackFideId "2034387"]
[WhiteElo "2310"]
[BlackElo "2592"]
[Result "1-0"]
[Round "02"]
[TimeControl "180+2"]
[Date "2023.02.28"]
[WhiteClock "0:00:07"]
[BlackClock "0:00:05"]

1. d4 {[%clk 0:03:00]}  d5 {[%clk 0:02:57]} 2. c4 {[%clk 0:03:00]}  c6 {[%clk 0:02:57]} 3. Nf3 {[%clk 0:02:59]}  Nf6 {[%clk 0:02:57]} 4. e3 {[%clk 0:02:59]}  Bf5 {[%clk 0:02:53]} 5. Nc3 {[%clk 0:02:54]}  e6 {[%clk 0:02:52]} 6. Nh4 {[%clk 0:02:54]}  Bg6 {[%clk 0:02:52]} 7. Be2 {[%clk 0:02:52]}  Nbd7 {[%clk 0:02:51]} 8. Qb3 {[%clk 0:02:47]}  b5 {[%clk 0:02:33]} 9. cxb5 {[%clk 0:02:31]}  c5 {[%clk 0:02:33]} 10. Nxg6 {[%clk 0:02:30]}  hxg6 {[%clk 0:02:32]} 11. dxc5 {[%clk 0:02:22]}  Nxc5 {[%clk 0:02:31]} 12. Qc2 {[%clk 0:02:19]}  Rc8 {[%clk 0:02:28]} 13. O-O {[%clk 0:02:04]}  Nfe4 {[%clk 0:02:07]} 14. b6 {[%clk 0:01:49]}  Bd6 {[%clk 0:02:00]} 15. g3 {[%clk 0:01:37]}  axb6 {[%clk 0:01:56]} 16. Nxe4 {[%clk 0:01:33]}  Nxe4 {[%clk 0:01:52]} 17. Qa4+ {[%clk 0:01:32]}  Kf8 {[%clk 0:01:52]} 18. Qd4 {[%clk 0:00:59]}  Qg5 {[%clk 0:01:40]} 19. Kg2 {[%clk 0:00:33]}  Rxh2+ {[%clk 0:01:32]} 20. Kxh2 {[%clk 0:00:31]}  Nxg3 {[%clk 0:01:24]} 21. Qg4 {[%clk 0:00:16]}  Nxe2+ {[%clk 0:01:06]} 22. Kh3 {[%clk 0:00:14]}  Qe5 {[%clk 0:01:01]} 23. f4 {[%clk 0:00:14]}  Qe4 {[%clk 0:00:31]} 24. Qxe2 {[%clk 0:00:14]}  Rc2 {[%clk 0:00:31]} 25. Qf3 {[%clk 0:00:14]}  Qf5+ {[%clk 0:00:31]} 26. Kg3 {[%clk 0:00:13]}  g5 {[%clk 0:00:31]} 27. Rf2 {[%clk 0:00:13]}  g4 {[%clk 0:00:16]} 28. Qg2 {[%clk 0:00:12]}  Rc4 {[%clk 0:00:07]} 29. Bd2 {[%clk 0:00:11]}  e5 {[%clk 0:00:06]} 30. Kh2 {[%clk 0:00:11]}  exf4 {[%clk 0:00:06]} 31. exf4 {[%clk 0:00:12]}  g5 {[%clk 0:00:07]} 32. Kg1 {[%clk 0:00:11]}  gxf4 {[%clk 0:00:07]} 33. Raf1 {[%clk 0:00:10]}  f3 {[%clk 0:00:07]} 34. Qh1 {[%clk 0:00:08]}  Bc5 {[%clk 0:00:06]} 35. Qh8+ {[%clk 0:00:08]}  Ke7 {[%clk 0:00:07]} 36. Re1+ {[%clk 0:00:08]}  Re4 {[%clk 0:00:07]} 37. Rxe4+ {[%clk 0:00:07]}  Qxe4 {[%clk 0:00:08]} 38. Bg5+ {[%clk 0:00:07]}  Kd7 {[%clk 0:00:06]} 39. Qd8+ {[%clk 0:00:07]}  Kc6 {[%clk 0:00:06]} 40. Qc8+ {[%clk 0:00:07]}  Kb5 {[%clk 0:00:07]} 41. Qd7+ {[%clk 0:00:07]}  Kc4 {[%clk 0:00:07]} 42. Qa4+ {[%clk 0:00:07]}  Kd3 {[%clk 0:00:07]} 43. Qc2+ {[%clk 0:00:07]}  Kd4 {[%clk 0:00:05]} 44. Bf6+ {[%clk 0:00:07]}  Qe5 {[%clk 0:00:04]} 45. Qc3+ {[%clk 0:00:07]}  Ke4 {[%clk 0:00:05]} 46. Qxe5+ {[%clk 0:00:08]}  Kd3 {[%clk 0:00:05]} 47. Qxd5+ {[%clk 0:00:08]}  Ke3 {[%clk 0:00:05]} 48. Bg5# {[%clk 0:00:07]} 1-0


[Site "https://www.chess.com"]

[Event "Titled Tuesday Blitz February 28 Late 2023"]
[White "Maximov, Dmitry"]
[Black "Martin Duque, Jesus"]
[WhiteFideId "14105659"]
[BlackFideId "2208954"]
[WhiteElo "2494"]
[BlackElo "2305"]
[Result "1-0"]
[Round "02"]
[TimeControl "180+2"]
[Date "2023.02.28"]
[WhiteClock "0:00:14"]
[BlackClock "0:00:01"]

1. e4 {[%clk 0:03:00]}  c5 {[%clk 0:02:58]} 2. Nf3 {[%clk 0:03:00]}  a6 {[%clk 0:02:58]} 3. c3 {[%clk 0:03:01]}  d5 {[%clk 0:02:57]} 4. e5 {[%clk 0:02:57]}  Nc6 {[%clk 0:02:33]} 5. d4 {[%clk 0:02:57]}  Bg4 {[%clk 0:02:28]} 6. Nbd2 {[%clk 0:02:54]}  e6 {[%clk 0:02:23]} 7. h3 {[%clk 0:02:53]}  Bh5 {[%clk 0:02:22]} 8. Be2 {[%clk 0:02:04]}  Nge7 {[%clk 0:02:05]} 9. O-O {[%clk 0:02:02]}  Nc8 {[%clk 0:01:59]} 10. Re1 {[%clk 0:01:57]}  Be7 {[%clk 0:01:56]} 11. dxc5 {[%clk 0:01:45]}  O-O {[%clk 0:01:55]} 12. Nb3 {[%clk 0:01:35]}  Qc7 {[%clk 0:01:46]} 13. Bf4 {[%clk 0:01:35]}  b6 {[%clk 0:01:41]} 14. cxb6 {[%clk 0:01:34]}  Nxb6 {[%clk 0:01:42]} 15. Nfd4 {[%clk 0:01:28]}  Bg6 {[%clk 0:01:39]} 16. Nxc6 {[%clk 0:01:26]}  Qxc6 {[%clk 0:01:39]} 17. Nd4 {[%clk 0:01:26]}  Qb7 {[%clk 0:01:38]} 18. b3 {[%clk 0:01:16]}  Rfc8 {[%clk 0:01:37]} 19. Qd2 {[%clk 0:01:17]}  Ba3 {[%clk 0:01:36]} 20. Bf3 {[%clk 0:01:03]}  Rc7 {[%clk 0:01:32]} 21. Re3 {[%clk 0:01:03]}  Rac8 {[%clk 0:01:31]} 22. Rd1 {[%clk 0:01:00]}  Nd7 {[%clk 0:01:19]} 23. h4 {[%clk 0:00:59]}  h6 {[%clk 0:01:16]} 24. h5 {[%clk 0:00:59]}  Bh7 {[%clk 0:01:16]} 25. c4 {[%clk 0:00:59]}  Bb4 {[%clk 0:01:09]} 26. Qe2 {[%clk 0:00:59]}  Nb6 {[%clk 0:00:58]} 27. Kh2 {[%clk 0:00:45]}  Qa7 {[%clk 0:00:53]} 28. cxd5 {[%clk 0:00:44]}  Nxd5 {[%clk 0:00:51]} 29. Bxd5 {[%clk 0:00:44]}  exd5 {[%clk 0:00:52]} 30. e6 {[%clk 0:00:45]}  Re7 {[%clk 0:00:51]} 31. exf7+ {[%clk 0:00:42]}  Rxf7 {[%clk 0:00:51]} 32. Re8+ {[%clk 0:00:42]}  Rxe8 {[%clk 0:00:50]} 33. Qxe8+ {[%clk 0:00:41]}  Rf8 {[%clk 0:00:44]} 34. Qe6+ {[%clk 0:00:41]}  Kh8 {[%clk 0:00:44]} 35. Bg3 {[%clk 0:00:36]}  Bg8 {[%clk 0:00:42]} 36. Qe5 {[%clk 0:00:32]}  Qd7 {[%clk 0:00:37]} 37. f3 {[%clk 0:00:31]}  Re8 {[%clk 0:00:36]} 38. Qf4 {[%clk 0:00:30]}  Rf8 {[%clk 0:00:24]} 39. Qe3 {[%clk 0:00:21]}  Re8 {[%clk 0:00:23]} 40. Qd3 {[%clk 0:00:22]}  Qf7 {[%clk 0:00:22]} 41. Qf5 {[%clk 0:00:20]}  Qe7 {[%clk 0:00:16]} 42. Nc6 {[%clk 0:00:16]}  Qc5 {[%clk 0:00:13]} 43. Nxb4 {[%clk 0:00:15]}  Qxb4 {[%clk 0:00:13]} 44. Qg6 {[%clk 0:00:15]}  Re6 {[%clk 0:00:12]} 45. Qf5 {[%clk 0:00:15]}  Rf6 {[%clk 0:00:11]} 46. Qe5 {[%clk 0:00:14]}  Qc5 {[%clk 0:00:07]} 47. Rd4 {[%clk 0:00:14]}  Qc1 {[%clk 0:00:05]} 48. Rg4 {[%clk 0:00:13]}  Qc8 {[%clk 0:00:03]} 49. Qe7 {[%clk 0:00:13]}  Qf8 {[%clk 0:00:02]} 50. Qxf8 {[%clk 0:00:13]}  Rxf8 {[%clk 0:00:03]} 51. Be5 {[%clk 0:00:13]}  Rf7 {[%clk 0:00:03]} 52. Rg6 {[%clk 0:00:13]}  a5 {[%clk 0:00:01]} 53. Rxh6+ {[%clk 0:00:14]} 1-0


[Site "https://www.chess.com"]

[Event "Titled Tuesday Blitz February 28 Late 2023"]
[White "Ehlvest, Jaan"]
[Black "Pakleza, Zbigniew"]
[WhiteFideId "4500016"]
[BlackFideId "1119290"]
[WhiteElo "2442"]
[BlackElo "2410"]
[Result "0-1"]
[Round "02"]
[TimeControl "180+2"]
[Date "2023.02.28"]
[WhiteClock "0:00:04"]
[BlackClock "0:00:03"]

1. e4 {[%clk 0:03:00]}  d6 {[%clk 0:02:59]} 2. d4 {[%clk 0:02:59]}  Nf6 {[%clk 0:02:59]} 3. Nc3 {[%clk 0:02:58]}  c6 {[%clk 0:03:00]} 4. f4 {[%clk 0:02:57]}  Qb6 {[%clk 0:03:00]} 5. e5 {[%clk 0:02:45]}  Nd5 {[%clk 0:03:00]} 6. Nf3 {[%clk 0:02:19]}  Bf5 {[%clk 0:02:56]} 7. Bd3 {[%clk 0:02:16]}  Bxd3 {[%clk 0:02:54]} 8. Qxd3 {[%clk 0:02:15]}  e6 {[%clk 0:02:52]} 9. f5 {[%clk 0:02:14]}  Nb4 {[%clk 0:02:32]} 10. Qe2 {[%clk 0:02:07]}  Qa6 {[%clk 0:02:32]} 11. fxe6 {[%clk 0:01:41]}  fxe6 {[%clk 0:02:33]} 12. Qf2 {[%clk 0:01:33]}  Be7 {[%clk 0:02:01]} 13. exd6 {[%clk 0:01:30]}  Bxd6 {[%clk 0:02:02]} 14. a3 {[%clk 0:01:30]}  Nd5 {[%clk 0:01:59]} 15. Ne4 {[%clk 0:01:26]}  Be7 {[%clk 0:01:52]} 16. Bg5 {[%clk 0:01:24]}  O-O {[%clk 0:01:38]} 17. Bxe7 {[%clk 0:01:24]}  Nxe7 {[%clk 0:01:39]} 18. O-O-O {[%clk 0:01:23]}  Nd7 {[%clk 0:01:33]} 19. Rhe1 {[%clk 0:01:21]}  Nd5 {[%clk 0:01:21]} 20. Neg5 {[%clk 0:01:11]}  Rf6 {[%clk 0:00:57]} 21. Nxe6 {[%clk 0:01:08]}  Nf8 {[%clk 0:00:46]} 22. Nc5 {[%clk 0:01:02]}  Qb5 {[%clk 0:00:39]} 23. Qd2 {[%clk 0:00:54]}  b6 {[%clk 0:00:33]} 24. Ne4 {[%clk 0:00:53]}  Re6 {[%clk 0:00:22]} 25. Ne5 {[%clk 0:00:52]}  Qa4 {[%clk 0:00:19]} 26. c4 {[%clk 0:00:42]}  Nf6 {[%clk 0:00:17]} 27. Nc3 {[%clk 0:00:33]}  Qb3 {[%clk 0:00:14]} 28. Kb1 {[%clk 0:00:30]}  Rae8 {[%clk 0:00:13]} 29. Re3 {[%clk 0:00:23]}  c5 {[%clk 0:00:09]} 30. Nb5 {[%clk 0:00:19]}  Qa4 {[%clk 0:00:07]} 31. Rde1 {[%clk 0:00:17]}  cxd4 {[%clk 0:00:07]} 32. Nxd4 {[%clk 0:00:16]}  Rd6 {[%clk 0:00:07]} 33. Qc3 {[%clk 0:00:16]}  Red8 {[%clk 0:00:06]} 34. Nf5 {[%clk 0:00:15]}  Rd1+ {[%clk 0:00:07]} 35. Ka2 {[%clk 0:00:14]}  Ne6 {[%clk 0:00:04]} 36. Ne7+ {[%clk 0:00:12]}  Kf8 {[%clk 0:00:03]} 37. N5c6 {[%clk 0:00:12]}  Rxe1 {[%clk 0:00:02]} 38. Rxe1 {[%clk 0:00:11]}  Rd6 {[%clk 0:00:02]} 39. Nf5 {[%clk 0:00:06]}  Qxc6 {[%clk 0:00:01]} 40. Nxd6 {[%clk 0:00:05]}  Qxd6 {[%clk 0:00:02]} 41. Re2 {[%clk 0:00:05]}  Kf7 {[%clk 0:00:03]} 42. Rd2 {[%clk 0:00:05]}  Qc6 {[%clk 0:00:03]} 43. Qb4 {[%clk 0:00:03]}  a5 {[%clk 0:00:03]} 44. b3 {[%clk 0:00:04]}  axb4 {[%clk 0:00:03]} 0-1


[Site "https://www.chess.com"]

[Event "Titled Tuesday Blitz February 28 Late 2023"]
[White "Fier, Alexandr"]
[Black "Koc, Przemyslaw"]
[WhiteFideId "2107139"]
[BlackFideId "1109081"]
[WhiteElo "2610"]
[BlackElo "2161"]
[Result "1-0"]
[Round "02"]
[TimeControl "180+2"]
[Date "2023.02.28"]
[WhiteClock "0:02:12"]
[BlackClock "0:00:53"]

1. d4 {[%clk 0:03:00]}  f5 {[%clk 0:02:59]} 2. Bg5 {[%clk 0:02:56]}  h6 {[%clk 0:02:59]} 3. Bh4 {[%clk 0:02:56]}  g5 {[%clk 0:03:00]} 4. Bg3 {[%clk 0:02:56]}  Bg7 {[%clk 0:02:58]} 5. e3 {[%clk 0:02:55]}  Nf6 {[%clk 0:02:58]} 6. h4 {[%clk 0:02:54]}  c5 {[%clk 0:02:55]} 7. hxg5 {[%clk 0:02:53]}  hxg5 {[%clk 0:02:56]} 8. Rxh8+ {[%clk 0:02:53]}  Bxh8 {[%clk 0:02:57]} 9. c3 {[%clk 0:02:53]}  Qb6 {[%clk 0:02:56]} 10. Qc1 {[%clk 0:02:45]}  Nc6 {[%clk 0:02:52]} 11. Nh3 {[%clk 0:02:42]}  Ne4 {[%clk 0:02:48]} 12. Bh2 {[%clk 0:02:37]}  g4 {[%clk 0:02:41]} 13. Nf4 {[%clk 0:02:36]}  e6 {[%clk 0:02:35]} 14. Nd2 {[%clk 0:02:35]}  d5 {[%clk 0:02:32]} 15. Nxe4 {[%clk 0:02:35]}  dxe4 {[%clk 0:02:33]} 16. Bc4 {[%clk 0:02:35]}  Ne7 {[%clk 0:02:22]} 17. Qc2 {[%clk 0:02:29]}  Bd7 {[%clk 0:02:21]} 18. Qb3 {[%clk 0:02:29]}  Qxb3 {[%clk 0:02:21]} 19. axb3 {[%clk 0:02:29]}  cxd4 {[%clk 0:02:17]} 20. cxd4 {[%clk 0:02:26]}  e5 {[%clk 0:02:15]} 21. dxe5 {[%clk 0:02:22]}  Bxe5 {[%clk 0:02:15]} 22. Bg3 {[%clk 0:02:18]}  Bxb2 {[%clk 0:02:10]} 23. Rd1 {[%clk 0:02:18]}  Bc3+ {[%clk 0:02:09]} 24. Kf1 {[%clk 0:02:18]}  O-O-O {[%clk 0:02:08]} 25. Bh4 {[%clk 0:02:18]}  Re8 {[%clk 0:01:47]} 26. Bxe7 {[%clk 0:02:16]}  Rxe7 {[%clk 0:01:47]} 27. Nd5 {[%clk 0:02:17]}  Rh7 {[%clk 0:00:58]} 28. Nxc3 {[%clk 0:02:15]}  f4 {[%clk 0:00:58]} 29. exf4 {[%clk 0:02:14]}  g3 {[%clk 0:00:59]} 30. fxg3 {[%clk 0:02:13]}  e3 {[%clk 0:00:55]} 31. Kg1 {[%clk 0:02:12]}  Bg4 {[%clk 0:00:53]} 32. Re1 {[%clk 0:02:12]} 1-0


[Site "https://www.chess.com"]